Cogmind - Beta 9.3 @@@ ROGUE MODE // 2019.12.23 @ 23:53:54 Player: Evillich Result: Destroyed by G-47 Trooper with Particle Gun Performance ------------- Evolutions (0) 0 Regions Visited (1) 200 Robots Destroyed (9) 45 Value Destroyed (243) 243 Prototype IDs (0) 0 Alien Tech Used (0) 0 Bonus (0) 0 TOTAL SCORE: 488 Bonus ------- None Cogmind --------- Core Integrity 0/250 Matter 230/300 Energy 98/100 System Corruption 3% Temperature Cool (9) Movement Core (50) Location -10/Materials Parts ------- > --- POWER (1) -------- (None) > --- PROPULSION (2) --- (None) > --- UTILITY (2) ------ Heat Sink > --- WEAPON (2) ------- (None) > --- INVENTORY (4) ---- Light Ion Engine Small Storage Unit Assault Rifle Welding Torch Peak State ------------ > --- POWER ------------ Light Ion Engine > --- PROPULSION ------- Light Treads Light Treads > --- UTILITY ---------- Seismic Analyzer > --- WEAPON ----------- Assault Rifle Light Assault Rifle > --- INVENTORY -------- Light Ion Engine [Rating: 6] Favorites ----------- Power Light Ion Engine Engine Light Ion Engine Propulsion Hover Unit Treads Light Treads Leg Aluminum Leg Wheel Wheel Hover Unit Hover Unit Utility Seismic Analyzer Device Heat Sink Processor Seismic Analyzer Weapon Assault Rifle Energy Gun Small Laser Ballistic Gun Assault Rifle Build | -11 -10 ------- Run | Scr Mat Slots Evolved . | . . Power . | . . Propulsion . | . . Utility . | . . Weapon . | . . Parts Attached 12 | 7 5 Power 1 | 1 . Engine 1 | 1 . Core . | . . Reactor . | . . Propulsion 6 | 3 3 Treads 2 | 2 . Leg 1 | . 1 Wheel 1 | 1 . Hover 2 | . 2 Flight . | . . Utility 2 | 1 1 Device 1 | . 1 Storage . | . . Processor 1 | 1 . Hackware . | . . Protection . | . . Artifact . | . . Weapon 3 | 2 1 Energy Gun 1 | . 1 Energy Cannon . | . . Ballistic Gun 2 | 2 . Ballistic Cannon . | . . Launcher . | . . Special Weapon . | . . Impact Weapon . | . . Slashing Weapon . | . . Piercing Weapon . | . . Special Melee Weapon . | . . Unidentified Prototypes . | . . Parts Lost 6 | . 6 Power 1 | . 1 Propulsion 1 | . 1 Utility 1 | . 1 Weapon 3 | . 3 Highest Loss Streak 5 | . 5 Average Slot Usage (%) 79 | . 79 Engine 13 | . 13 Treads 2 | . 2 Leg 3 | . 3 Hover 15 | . 15 Device 4 | . 4 Processor 13 | . 13 Energy Gun 3 | . 3 Ballistic Gun 21 | . 21 Naked Turns . | . . Heaviest Build 7 | 6 7 Greatest Support 40 | 40 40 Greatest Overweight (x) 1 | . 1 Average Overweight (x) . | . . Largest Inventory Capacity 4 | 4 4 Average Capacity 4 | 4 4 Most Carried 4 | 3 4 Average Carried 3 | 1 3 Final Capacity 4 | 4 4 Final Carried 4 | 3 4 Class Distribution -------------------- 75% | Mutant 24% | Scavenger-Mutant Dominant Class ---------------- Mutant | -10/Materials Resources | -11 -10 ----------- Run | Scr Mat Matter Collected 286 | 190 96 Remotely . | . . Salvage Created 374 | 103 271 Parts 22 | 5 17 Haulers Intercepted . | . . Recyclers Shooed . | . . Parts Field Recycled . | . . Retrieved Matter . | . . Parts Self-Destructed . | . . Prevented . | . . Kills | -11 -10 ------- Run | Scr Mat Combat Hostiles Destroyed 5 | . 5 Melee 1 | . 1 Guns 4 | . 4 Classes Destroyed 5 | 2 3 Worker 1 | . 1 Tunneler 1 | 1 . Recycler 1 | 1 . Watcher 1 | . 1 Grunt 5 | . 5 Best Kill Streak 2 | 2 2 Combat Bots Only 2 | . 2 Max Kills in Single Turn 1 | 1 1 Gunslinging . | . . Exploded . | . . Melee 1 | . 1 Uniques/NPCs Destroyed . | . . Combat | -11 -10 -------- Run | Scr Mat Damage Taken 667 | . 667 Core 257 | . 257 Absorbed by Shields . | . . Core Remaining (%) 100 | 100 . Volleys Fired 42 | 3 39 Largest 2 | 2 2 Hottest 60 | 40 60 Shots Fired 74 | 6 68 Gun 74 | 6 68 Cannon . | . . Launcher . | . . Special . | . . Kinetic 69 | 6 63 Thermal 5 | . 5 Explosive . | . . Electromagnetic . | . . Robot Hit Streak 14 | 4 14 Robot Miss Streak 2 | . 2 Penetration Max . | . . Secondary Targets . | . . Shots Hit Robots 32 | 4 28 Core Hits 22 | 3 19 Critical Hits . | . . Critical Kills . | . . Critical Parts Destroyed . | . . Melee Attacks . | . . Impact . | . . Slashing . | . . Piercing . | . . Sneak Attacks . | . . Combat Hostiles . | . . Follow-up Attacks . | . . Damage Inflicted 463 | 46 417 Guns 401 | 46 355 Cannons . | . . Explosions . | . . Melee . | . . Ramming 62 | . 62 Kinetic 378 | 46 332 Thermal 23 | . 23 Explosive . | . . Electromagnetic . | . . Impact . | . . Slashing . | . . Piercing . | . . Highest Corruption 3 | . 3 Average Corruption 2 | . 2 Corruption Purged . | . . Overload Shots . | . . Overflow Damage . | . . Projectiles . | . . Explosions . | . . Melee . | . . Knockbacks . | . . Impact . | . . Kinetic . | . . Secondary . | . . Self-Inflicted Damage 122 | . 122 Shots 1 | . 1 Rammed 24 | . 24 Targets Rammed 26 | . 26 Kicked 2 | . 2 Crushed . | . . Highest Temperature 20 | . 20 Average Temperature 7 | . 7 Received Heat Transfer 300 | . 300 Siege Activations . | . . Robots Corrupted . | . . Combat Hostiles . | . . Parts Fried . | . . Impact Corruptions . | . . Robots Melted . | . . Combat Hostiles . | . . Parts Melted . | . . Heat Transferred 50 | . 50 Parts Sabotaged . | . . Parts Stolen . | . . Parts Stripped . | . . Power Chain Reactions . | . . Missiles Intercepted . | . . Alert | -11 -10 ------- Run | Scr Mat Peak Influence 143 | 10 143 Average Influence 47 | 6 58 Maximum Alert Level . | . . Low Security (%) 100 | 100 100 Level 1 . | . . Level 2 . | . . Level 3 . | . . Level 4 . | . . Level 5 . | . . High Security . | . . Max Security . | . . Squads Dispatched 1 | . 1 Investigation . | . . Extermination . | . . Reinforcement 1 | . 1 Assault . | . . Garrison . | . . Intercept . | . . Construction Impeded . | . . Haulers Reinforced . | . . Stealth | -11 -10 --------- Run | Scr Mat Distress Signals 2 | . 2 Communications Jammed . | . . Distress Signals . | . . Times Spotted 12 | . 12 Peak Tracking Total 5 | . 5 Tactical Retreats 1 | . 1 Traps | -11 -10 ------- Run | Scr Mat Traps Triggered . | . . Indirectly . | . . Trap Hack Attempts . | . . Triggered . | . . Disarmed . | . . Reprogrammed . | . . Reused . | . . Traps Extracted . | . . Installed . | . . Triggered . | . . Machines | -11 -10 ---------- Run | Scr Mat Machines Disabled 3 | . 3 Max in Single Turn 1 | . 1 Machines Sabotaged . | . . Garrisons Compromised . | . . Overloaded Fab Kills . | . . Fab Network Shutdowns . | . . Hacking | -11 -10 --------- Run | Scr Mat Machines Accessed . | . . Terminals . | . . Fabricators . | . . Repair Stations . | . . Recycling Units . | . . Scanalyzers . | . . Garrison Access . | . . Total Hacks . | . . Successful . | . . Failed . | . . Catastrophic . | . . Database Lockouts . | . . Manual . | . . Terminals . | . . Fabricators . | . . Repair Stations . | . . Recycling Units . | . . Scanalyzers . | . . Garrison Access . | . . Terminal Hacks . | . . Fabricator Hacks . | . . Repair Station Hacks . | . . Recycling Unit Hacks . | . . Scanalyzer . | . . Garrison Access Hacks . | . . Unauthorized Hacks . | . . Terminals . | . . Fabricators . | . . Repair Stations . | . . Recycling Units . | . . Scanalyzers . | . . Garrison Access . | . . Data Cores Recovered . | . . Used . | . . Hacking Detections . | . . Full Trace Events . | . . Feedback Events . | . . Feedback Blocked . | . . Robot Schematics Acquired . | . . Robots Built . | . . Matter . | . . Time . | . . Total Robot Build Rating . | . . Part Schematics Acquired . | . . Parts Built . | . . Matter . | . . Time . | . . Total Part Build Rating . | . . Parts Repaired . | . . Time . | . . Parts Recycled . | . . Recycled Matter . | . . Retrieved Matter . | . . Retrieved Components . | . . Parts Scanalyzed . | . . Part Schematics Acquired . | . . Parts Damaged . | . . Bothacking | -11 -10 ------------ Run | Scr Mat Used RIF Installer . | . . Robots Hacked . | . . Non-combat . | . . Combat . | . . Robot Hacks Applied . | . . Relay Couplers Released . | . . Robots Rewired . | . . Allies Hacked . | . . Hacks Repelled . | . . Allies | -11 -10 -------- Run | Scr Mat Total Allies . | . . Largest Group . | . . Highest-Rated Group . | . . Highest-Rated Ally . | . . Total Orders . | . . Ally Attacks . | . . Total Damage . | . . Kills . | . . Allies Corrupted . | . . Allies Melted . | . . Intel | -11 -10 ------- Run | Scr Mat Robot Analysis Total . | . . Derelict Logs Recovered . | . . Drone Launches . | . . Drone Recoveries . | . . Exploration | -11 -10 ------------- Run | Scr Mat Turns Passed 549 | 113 436 Spaces Moved 264 | 52 212 Core 17 | 2 15 Treads 73 | 48 25 Legs 34 | . 34 Wheels 2 | 2 . Hover 138 | . 138 Flight . | . . Fastest Speed 50 | 50 50 Average Speed 94 | 152 79 Slowest Speed 160 | 160 160 Overloaded Moves . | . . Propulsion Burnouts . | . . Robots Hopped . | . . Cave-ins Triggered . | . . Exploration Rate (%) 13 | 5 22 Regions Visited 1 Branch Regions . Pre-discovered Areas . | . . Known Exits Taken . | . . Unknown Exits Taken 1 | 1 . Scrap Searched . | . . Spaces Dug . | . . Terrain Destroyed 38 | . 38 Melee . | . . Projectile . | . . AOE 38 | . 38 Actions | -11 -10 --------- Run | Scr Mat Total 494 | 81 413 Wait 134 | 9 125 Move 263 | 51 212 Hop . | . . Pick Up 12 | 10 2 Fast Attach 4 | . 4 Attach 8 | 7 1 Detach . | . . Swap . | . . Drop 5 | 1 4 Fire 42 | 3 39 Melee . | . . Ram 14 | . 14 Kick 12 | . 12 Crush . | . . Escape Stasis . | . . Rewire . | . . Trap . | . . Miscellaneous . | . . Route ------- -11/Scrapyard -10/Materials (discovered 1 exit: [*Min]) History --------- Turn | Location | Event 5 | -11/Scrapyard | Discovered new exit (range 15) 114 | -11/Scrapyard | Entered Materials 180 | -10/Materials | Discovered new exit (range 12) 318 | -10/Materials | Build established: Mutant 530 | -10/Materials | Core integrity fell below 50% 546 | -10/Materials | Core integrity fell below 20% 550 | -10/Materials | Destroyed by G-47 Trooper with Particle Gun Last Messages --------------- 00533_ Aluminum Leg destroyed. 00535_ Slammed into G-47 Trooper. 00537_ Sml. Laser destroyed. 00538_ Slammed into G-47 Trooper. 00539_ Destabilizing: System interference. 00539_ Seismic Analyzer temporarily disabled. 00540_ Slammed into G-47 Trooper. 00541_ Destabilizing: Short circuit. 00541_ Broken Heat Sink permanently disabled. 00542_ Slammed into G-47 Trooper. 00543_ Destabilizing: System corrupted (+1). 00544_ Slammed into G-47 Trooper. 00545_ Destabilizing: Short circuit. 00545_ Broken Heat Sink permanently disabled. 00546_ Slammed into G-47 Trooper. 00548_ G-47 Trooper destroyed. [Achievement: Fist Fight] 00548_ Seismic Analyzer destroyed. 00549_ Acquired 60 matter. 00549_ R-06 Scavenger collects Aluminum Leg. Map ----- +----------------------------------------------------+ | #"" # ###??????????????????????????????? | | # # #????????????????????????????????? | | # ### ###????????????????????????????????? | | # #?# #??????????????????????????????????? | | ######## ###????????????????????????????????? | | ?????# #????"" ?????????????????????????? | | ?????# ### """ ?????????????????????????? | | ?????# + """ ?????????????????????????? | | ?????# ### ?????????????????????? | | ??#### ##??? | ???? ????????????????? | | ??# ##/## #??????#####??? ????????????????? | | ?## #######????????? ????????????????? | | ?# # #????????? ????????????????? | | ?# ! # """ #????????? ????????????????? | | ?# # """ #????????? ????????????????? | | ?# % """ #????????? ????????????????? | | ?### ##/### #????????# #???????????????? | | ??# #! # """ ########?# #???????????????? | | ??## #! + " # #?# #???????????????? | | ???#####%= # """ # """#?# #???????????????? | | ########|! # # " "#?# #???????????????? | | # ## # * # " "#?# #???????????????? | | # ## # # #?# #???????????????? | | # ## #######?? #?# #???????????????? | | # # ##########+#### ########## | | # """ # % = @ g | | # """ + %%*[!r g ############ | | # """ # #?????????????????? | | # # #####+#########?????????????????? | | # """ ## ##?? ????????????????????????? | | # """ ## #? """" #??????????????????????? | | # """ ## ##!] """" #??????????????????????? | | # ## ##!/ """" #??????????????????????? | | ??###### ## #??????????????????????? | | ???????# ## """" #??????????????????????? | | ???????# ##! """?????????????????????????? | | ???????###### ?????????????????????????????? | | ????????????#! ?????????????????????????????? | | ????????????##??????????????????????????????? | | ????????????????????????????????????????????? | | ????????????????????????????????????????????? | | ????????????????????????????????????????????? | | | | | | | | | | | | | | | | | +----------------------------------------------------+ Best States ------------- Heat Dissipation 35 Energy Generation 10 Energy Capacity 125 Matter Stores 230 Matter Capacity 300 Sight Range 16 Terrain Scan Density 60 Evasion (%) 53 Recoil Reduction 2 Item Schematics ----------------- None Robot Schematics ------------------ None Fabricated ------------ Nothing Alien Tech Used ----------------- None Achievements -------------- Fist Fight Challenges ------------ None Game ------ Seed MyomerSegregatorPurifier Manual? 0 Play Time 00:12:27 Cumulative 5.1 hours Start 2019.12.23 @ 23:36:14 End 2019.12.23 @ 23:53:54 Sessions 1 Manual Loads 0 Difficulty Rogue Special Mode None Game No. 4 Rogue 4 Adventurer 0 Explorer 0 Win Type - Total 0 Types 0/0/0/0/0/0/0 Lore% 13 Gallery% 12 Achievement% 10 Wizard Run 0 Options --------- ASCII 0 Keyboard 0 Movement Mouse Keybinds 0 Fullscreen 1 Font 18/SmallcapsGlow Map View 76x50 Tactical HUD 1 Map Filters NONE Filters NONE Steam 1 RUN: 9509ef40-2ed9-4a16-aad2-0a7920caabb8